[Event "Live Chess"]
[Site "Chess.com"]
[Date "2023.05.20"]
[Round "-"]
[White "Singapourfeuj"]
[Black "18Ziyad"]
[Result "1-0"]
[WhiteElo "2238"]
[BlackElo "954"]
[TimeControl "300"]
[EndTime "11:02:48 PDT"]
[Termination "Singapourfeuj won by resignation"]

1. d4 {[%clk 0:04:57.2]} 1... d5 {[%clk 0:04:59.2]} 2. c4 {[%clk 0:04:56.2]}
2... Nf6 {[%clk 0:04:58.5]} 3. cxd5 {[%clk 0:04:55.4]} 3... Nxd5 {[%clk
0:04:58.2]} 4. e4 {[%clk 0:04:47.6]} 4... Nf6 {[%clk 0:04:56.3]} 5. Nc3 {[%clk
0:04:45.6]} 5... e6 {[%clk 0:04:51.7]} 6. Be2 {[%clk 0:04:43.2]} 6... Bb4 {[%clk
0:04:49.8]} 7. Be3 {[%clk 0:04:36]} 7... b6 {[%clk 0:04:48.3]} 8. e5 {[%clk
0:04:31.9]} 8... Nfd7 {[%clk 0:04:46.8]} 9. Nf3 {[%clk 0:04:30.6]} 9... Bb7
{[%clk 0:04:46.1]} 10. O-O {[%clk 0:04:29.6]} 10... O-O {[%clk 0:04:42.7]} 11.
a3 {[%clk 0:04:28.7]} 11... Bxc3 {[%clk 0:04:41.2]} 12. bxc3 {[%clk 0:04:27.8]}
12... Nc6 {[%clk 0:04:36.2]} 13. Bd3 {[%clk 0:04:26.6]} 13... f6 {[%clk
0:04:32.4]} 14. exf6 {[%clk 0:04:22.9]} 14... Nxf6 {[%clk 0:04:25.5]} 15. Bg5
{[%clk 0:04:18.6]} 15... h6 {[%clk 0:04:24.1]} 16. Bh4 {[%clk 0:04:17.2]} 16...
Qd6 {[%clk 0:04:15.4]} 17. Re1 {[%clk 0:04:13.8]} 17... Ng4 {[%clk 0:04:10.2]}
18. Bg3 {[%clk 0:04:12.2]} 18... Qd7 {[%clk 0:03:59]} 19. Qe2 {[%clk 0:04:10.5]}
19... Rae8 {[%clk 0:03:55]} 20. Rad1 {[%clk 0:04:08.4]} 20... Nf6 {[%clk
0:03:48.1]} 21. Bb1 {[%clk 0:04:06.5]} 21... Nd5 {[%clk 0:03:45.6]} 22. Qd3
{[%clk 0:04:01.8]} 22... Nf6 {[%clk 0:02:52.2]} 23. c4 {[%clk 0:03:58.3]} 23...
Rf7 {[%clk 0:02:07]} 24. d5 {[%clk 0:03:48]} 24... exd5 {[%clk 0:01:58.5]} 25.
cxd5 {[%clk 0:03:47.1]} 25... Ne7 {[%clk 0:01:43.8]} 26. Ne5 {[%clk 0:03:44.9]}
26... Qa4 {[%clk 0:01:27.4]} 27. Nxf7 {[%clk 0:03:41.2]} 27... Kxf7 {[%clk
0:01:26.1]} 28. d6 {[%clk 0:03:40.2]} 28... cxd6 {[%clk 0:01:21.8]} 29. Qxd6
{[%clk 0:03:37.3]} 29... Qc6 {[%clk 0:00:58.6]} 30. Ba2+ {[%clk 0:03:34.1]}
30... Kf8 {[%clk 0:00:49.2]} 31. Qxc6 {[%clk 0:03:32.7]} 31... Bxc6 {[%clk
0:00:47.5]} 32. Bd6 {[%clk 0:03:31.5]} 32... Nd5 {[%clk 0:00:43.7]} 33. Bxd5
{[%clk 0:03:29.3]} 33... Bxd5 {[%clk 0:00:41.5]} 34. Rxe7 {[%clk 0:03:27.5]}
34... Rd8 {[%clk 0:00:41.4]} 35. Rd7+ {[%clk 0:03:25.7]} 35... Ke8 {[%clk
0:00:38.9]} 36. Rxd8+ {[%clk 0:03:24.8]} 36... Kxd8 {[%clk 0:00:38.1]} 37. Rxd5
{[%clk 0:03:23.7]} 1-0

[Event "Live Chess"]
[Site "Chess.com"]
[Date "2023.05.20"]
[Round "-"]
[White "diana21strabt"]
[Black "Jeffaroow"]
[Result "1-0"]
[WhiteElo "1709"]
[BlackElo "461"]
[TimeControl "300"]
[EndTime "11:03:01 PDT"]
[Termination "diana21strabt won by resignation"]

1. e4 {[%clk 0:04:58.5]} 1... e5 {[%clk 0:04:58.7]} 2. Nf3 {[%clk 0:04:57.4]}
2... Nc6 {[%clk 0:04:56.8]} 3. d4 {[%clk 0:04:56.5]} 3... exd4 {[%clk
0:04:54.1]} 4. Bc4 {[%clk 0:04:55.4]} 4... Qf6 {[%clk 0:04:50.9]} 5. O-O {[%clk
0:04:52.7]} 5... Bd6 {[%clk 0:04:43.2]} 6. Re1 {[%clk 0:04:46.2]} 6... Bf4
{[%clk 0:04:33.9]} 7. Bxf4 {[%clk 0:04:44.2]} 7... Qxf4 {[%clk 0:04:32]} 8. Nxd4
{[%clk 0:04:43.2]} 8... Nxd4 {[%clk 0:04:28.8]} 9. Qxd4 {[%clk 0:04:42.4]} 9...
Nf6 {[%clk 0:04:22.4]} 10. Nc3 {[%clk 0:04:39.2]} 10... O-O {[%clk 0:04:12.4]}
11. Rad1 {[%clk 0:04:37.8]} 11... Re8 {[%clk 0:04:08.9]} 12. e5 {[%clk
0:04:34.6]} 12... Rxe5 {[%clk 0:04:03.5]} 13. Qxf4 {[%clk 0:04:31.8]} 1-0

[Event "Live Chess"]
[Site "Chess.com"]
[Date "2023.05.20"]
[Round "-"]
[White "CeladonFish"]
[Black "alanmike75"]
[Result "0-1"]
[WhiteElo "1038"]
[BlackElo "1506"]
[TimeControl "300"]
[EndTime "11:03:06 PDT"]
[Termination "alanmike75 won by checkmate"]

1. d4 {[%clk 0:04:59.6]} 1... d5 {[%clk 0:04:55.5]} 2. c4 {[%clk 0:04:58.5]}
2... c6 {[%clk 0:04:53.9]} 3. Nc3 {[%clk 0:04:52.5]} 3... Nf6 {[%clk 0:04:52.3]}
4. Bf4 {[%clk 0:04:50.8]} 4... e6 {[%clk 0:04:50]} 5. Nf3 {[%clk 0:04:49.4]}
5... Bd6 {[%clk 0:04:48.8]} 6. Bxd6 {[%clk 0:04:45.7]} 6... Qxd6 {[%clk
0:04:47.5]} 7. Qc2 {[%clk 0:04:43.4]} 7... Nbd7 {[%clk 0:04:44.6]} 8. cxd5
{[%clk 0:04:38.1]} 8... exd5 {[%clk 0:04:42.4]} 9. e4 {[%clk 0:04:32.7]} 9...
dxe4 {[%clk 0:04:38.9]} 10. Nxe4 {[%clk 0:04:31.3]} 10... Nxe4 {[%clk
0:04:36.9]} 11. Qxe4+ {[%clk 0:04:29.6]} 11... Qe7 {[%clk 0:04:34.4]} 12. Qxe7+
{[%clk 0:04:28.1]} 12... Kxe7 {[%clk 0:04:33.5]} 13. Be2 {[%clk 0:04:21.2]}
13... Nf6 {[%clk 0:04:28.1]} 14. O-O {[%clk 0:04:16.8]} 14... Be6 {[%clk
0:04:25.9]} 15. b3 {[%clk 0:04:08.6]} 15... Rhd8 {[%clk 0:04:23.7]} 16. Rfd1
{[%clk 0:04:06.5]} 16... Kf8 {[%clk 0:04:20.5]} 17. Ne5 {[%clk 0:04:00.7]} 17...
Nd5 {[%clk 0:04:14.4]} 18. Rd2 {[%clk 0:03:50.6]} 18... f6 {[%clk 0:04:04.1]}
19. Nc4 {[%clk 0:03:46.8]} 19... Rd7 {[%clk 0:03:48.9]} 20. Kf1 {[%clk
0:03:38.7]} 20... Rad8 {[%clk 0:03:46.6]} 21. Rc1 {[%clk 0:03:33.8]} 21... Nf4
{[%clk 0:03:38.2]} 22. g3 {[%clk 0:03:27.7]} 22... Nxe2 {[%clk 0:03:36.3]} 23.
Rxe2 {[%clk 0:03:26.8]} 23... Bxc4 {[%clk 0:03:32.6]} 24. bxc4 {[%clk
0:03:23.1]} 24... Rxd4 {[%clk 0:03:31.3]} 25. Kg2 {[%clk 0:03:19.3]} 25... R8d7
{[%clk 0:03:25.8]} 26. Rcc2 {[%clk 0:03:13.8]} 26... b6 {[%clk 0:03:23.7]} 27.
Kf3 {[%clk 0:03:04.9]} 27... c5 {[%clk 0:03:21.6]} 28. Re4 {[%clk 0:03:02.6]}
28... Kf7 {[%clk 0:03:10.7]} 29. a4 {[%clk 0:02:56.4]} 29... g6 {[%clk
0:03:05.1]} 30. Rxd4 {[%clk 0:02:50.1]} 30... Rxd4 {[%clk 0:03:03.5]} 31. Rc3
{[%clk 0:02:48.9]} 31... f5 {[%clk 0:02:56.6]} 32. Ke3 {[%clk 0:02:43.6]} 32...
Kf6 {[%clk 0:02:55]} 33. f4 {[%clk 0:02:39.4]} 33... h6 {[%clk 0:02:52.9]} 34.
h3 {[%clk 0:02:34.1]} 34... g5 {[%clk 0:02:49.4]} 35. fxg5+ {[%clk 0:02:31.2]}
35... hxg5 {[%clk 0:02:45.1]} 36. Kf3 {[%clk 0:02:27.1]} 36... f4 {[%clk
0:02:36.5]} 37. gxf4 {[%clk 0:02:19.5]} 37... Rxf4+ {[%clk 0:02:34.9]} 38. Kg3
{[%clk 0:02:16.1]} 38... Kf5 {[%clk 0:02:32.6]} 39. Rf3 {[%clk 0:02:02.7]} 39...
Ke4 {[%clk 0:02:27.3]} 40. Rxf4+ {[%clk 0:02:01.5]} 40... gxf4+ {[%clk
0:02:26.1]} 41. Kg4 {[%clk 0:02:01]} 41... Ke3 {[%clk 0:02:21.6]} 42. h4 {[%clk
0:02:00]} 42... f3 {[%clk 0:02:20.7]} 43. h5 {[%clk 0:01:59.5]} 43... f2 {[%clk
0:02:19.8]} 44. h6 {[%clk 0:01:58.9]} 44... f1=Q {[%clk 0:02:18]} 45. h7 {[%clk
0:01:57.2]} 45... Qh1 {[%clk 0:02:16]} 46. a5 {[%clk 0:01:54.9]} 46... Qxh7
{[%clk 0:02:13.9]} 47. axb6 {[%clk 0:01:53.1]} 47... axb6 {[%clk 0:02:12.7]} 48.
Kg5 {[%clk 0:01:51.9]} 48... Qe4 {[%clk 0:02:09.2]} 49. Kf6 {[%clk 0:01:50.4]}
49... Qxc4 {[%clk 0:02:07.8]} 50. Kg5 {[%clk 0:01:49.5]} 50... b5 {[%clk
0:02:06.9]} 51. Kh5 {[%clk 0:01:48.2]} 51... b4 {[%clk 0:02:06.8]} 52. Kg5
{[%clk 0:01:47.6]} 52... b3 {[%clk 0:02:06.7]} 53. Kf5 {[%clk 0:01:47.2]} 53...
b2 {[%clk 0:02:06.4]} 54. Kf6 {[%clk 0:01:46.1]} 54... b1=Q {[%clk 0:02:04.5]}
55. Kg5 {[%clk 0:01:45.4]} 55... Qg1+ {[%clk 0:02:00.1]} 56. Kf6 {[%clk
0:01:44.4]} 56... Qf4+ {[%clk 0:01:58.3]} 57. Ke6 {[%clk 0:01:42.9]} 57... Kd3
{[%clk 0:01:53.3]} 58. Kd5 {[%clk 0:01:42]} 58... c4 {[%clk 0:01:51.8]} 59. Kc6
{[%clk 0:01:40.8]} 59... Qf6+ {[%clk 0:01:48.5]} 60. Kb5 {[%clk 0:01:40.1]}
60... Qgg5+ {[%clk 0:01:45]} 61. Kb4 {[%clk 0:01:38.9]} 61... Qb6+ {[%clk
0:01:43.4]} 62. Ka3 {[%clk 0:01:38.2]} 62... Qga5# {[%clk 0:01:41.7]} 0-1

[Event "Live Chess"]
[Site "Chess.com"]
[Date "2023.05.20"]
[Round "-"]
[White "wadsy27"]
[Black "flyingpuffins"]
[Result "1-0"]
[WhiteElo "2588"]
[BlackElo "1982"]
[TimeControl "300"]
[EndTime "11:03:11 PDT"]
[Termination "wadsy27 won by resignation"]

1. c4 {[%clk 0:04:58.3]} 1... c6 {[%clk 0:04:58.5]} 2. Nf3 {[%clk 0:04:56.6]}
2... Nf6 {[%clk 0:04:57.1]} 3. g3 {[%clk 0:04:56.5]} 3... d5 {[%clk 0:04:52.8]}
4. Bg2 {[%clk 0:04:55.7]} 4... g6 {[%clk 0:04:49.4]} 5. b3 {[%clk 0:04:49.4]}
5... Bg7 {[%clk 0:04:48.3]} 6. Bb2 {[%clk 0:04:48]} 6... O-O {[%clk 0:04:47.5]}
7. O-O {[%clk 0:04:46]} 7... b6 {[%clk 0:04:39.2]} 8. d4 {[%clk 0:04:25.6]} 8...
Nbd7 {[%clk 0:04:27.4]} 9. Nc3 {[%clk 0:04:23]} 9... Ba6 {[%clk 0:04:24.9]} 10.
Nd2 {[%clk 0:03:48.6]} 10... e6 {[%clk 0:04:12]} 11. e4 {[%clk 0:03:28.8]} 11...
Rc8 {[%clk 0:03:52.3]} 12. Re1 {[%clk 0:03:19.9]} 12... dxe4 {[%clk 0:03:40.3]}
13. Ndxe4 {[%clk 0:03:18.3]} 13... Nxe4 {[%clk 0:03:28.9]} 14. Nxe4 {[%clk
0:03:18.2]} 14... c5 {[%clk 0:03:28.1]} 15. Rb1 {[%clk 0:02:53.1]} 15... cxd4
{[%clk 0:03:23.2]} 16. Bxd4 {[%clk 0:02:51.7]} 16... Nc5 {[%clk 0:03:02.8]} 17.
Nxc5 {[%clk 0:02:42]} 17... bxc5 {[%clk 0:02:56.2]} 18. Bxg7 {[%clk 0:02:40.5]}
18... Kxg7 {[%clk 0:02:50]} 19. Qe2 {[%clk 0:02:35.8]} 19... Qa5 {[%clk
0:02:41.1]} 20. h4 {[%clk 0:02:26.4]} 20... Rfd8 {[%clk 0:02:35.2]} 21. h5
{[%clk 0:02:22.3]} 21... gxh5 {[%clk 0:02:08.9]} 22. Qxh5 {[%clk 0:02:19.6]}
22... Rd2 {[%clk 0:01:52.5]} 23. Re4 {[%clk 0:02:13.9]} 23... Qxa2 {[%clk
0:01:41.7]} 24. Rg4+ {[%clk 0:01:55.8]} 24... Kf8 {[%clk 0:01:40.3]} 25. Qxh7
{[%clk 0:01:43.6]} 25... Rxf2 {[%clk 0:01:20.1]} 26. Rg8+ {[%clk 0:01:32]} 26...
Ke7 {[%clk 0:01:18.7]} 27. Qh4+ {[%clk 0:01:30.9]} 27... Kd7 {[%clk 0:01:01.2]}
28. Rd1+ {[%clk 0:01:14.5]} 28... Rd2 {[%clk 0:00:51.3]} 29. Rxd2+ {[%clk
0:01:10.9]} 29... Qxd2 {[%clk 0:00:50.1]} 30. Rg7 {[%clk 0:01:05.6]} 30... Ke8
{[%clk 0:00:07.8]} 31. Kh2 {[%clk 0:00:51.3]} 31... Qd4 {[%clk 0:00:05.6]} 32.
Qh7 {[%clk 0:00:47.5]} 32... Rc7 {[%clk 0:00:02.2]} 33. Qg8+ {[%clk 0:00:46]}
33... Ke7 {[%clk 0:00:01.6]} 34. Qxf7+ {[%clk 0:00:45.5]} 1-0

[Event "Live Chess"]
[Site "Chess.com"]
[Date "2023.05.20"]
[Round "-"]
[White "Lewstar1"]
[Black "raminguy"]
[Result "0-1"]
[WhiteElo "454"]
[BlackElo "1985"]
[TimeControl "300"]
[EndTime "11:03:13 PDT"]
[Termination "raminguy won by checkmate"]

1. e4 {[%clk 0:04:54.9]} 1... e5 {[%clk 0:04:58.3]} 2. Nc3 {[%clk 0:04:50.6]}
2... Nc6 {[%clk 0:04:57.7]} 3. Bc4 {[%clk 0:04:48.5]} 3... Nf6 {[%clk
0:04:56.8]} 4. d3 {[%clk 0:04:46.9]} 4... Na5 {[%clk 0:04:56.1]} 5. f4 {[%clk
0:04:39.5]} 5... Nxc4 {[%clk 0:04:54.1]} 6. dxc4 {[%clk 0:04:37.5]} 6... Bb4
{[%clk 0:04:49.4]} 7. fxe5 {[%clk 0:04:34]} 7... Nxe4 {[%clk 0:04:48.1]} 8. Bd2
{[%clk 0:04:25.4]} 8... Nxd2 {[%clk 0:04:46.5]} 9. Qxd2 {[%clk 0:04:24.7]} 9...
Qh4+ {[%clk 0:04:34.9]} 10. g3 {[%clk 0:04:22.3]} 10... Bxc3 {[%clk 0:04:32.1]}
11. Qxc3 {[%clk 0:04:19.3]} 11... Qe4+ {[%clk 0:04:30.6]} 12. Kd2 {[%clk
0:04:07.9]} 12... Qxh1 {[%clk 0:04:27.5]} 13. Qe3 {[%clk 0:04:01.1]} 13... Qxh2+
{[%clk 0:04:24.7]} 14. Ne2 {[%clk 0:03:58.3]} 14... O-O {[%clk 0:04:21.4]} 15.
g4 {[%clk 0:03:54]} 15... d6 {[%clk 0:04:18.2]} 16. exd6 {[%clk 0:03:52.5]}
16... Qxd6+ {[%clk 0:04:15.8]} 17. Nd4 {[%clk 0:03:46.8]} 17... c5 {[%clk
0:04:14.1]} 18. c3 {[%clk 0:03:43.6]} 18... cxd4 {[%clk 0:04:11.9]} 19. cxd4
{[%clk 0:03:43.5]} 19... Rd8 {[%clk 0:04:08.5]} 20. Kc3 {[%clk 0:03:41.7]} 20...
Bxg4 {[%clk 0:04:03.5]} 21. Rg1 {[%clk 0:03:38.1]} 21... Be6 {[%clk 0:04:01.5]}
22. Qg5 {[%clk 0:03:29.7]} 22... Qxd4+ {[%clk 0:03:59.2]} 23. Kb4 {[%clk
0:03:27.9]} 23... a5+ {[%clk 0:03:57.4]} 24. Kb3 {[%clk 0:03:21.6]} 24... Qxc4+
{[%clk 0:03:55.4]} 25. Ka3 {[%clk 0:03:17]} 25... Qb4# {[%clk 0:03:53.7]} 0-1

[Event "Live Chess"]
[Site "Chess.com"]
[Date "2023.05.20"]
[Round "-"]
[White "jagbama"]
[Black "Hacker_2009"]
[Result "0-1"]
[WhiteElo "1138"]
[BlackElo "1928"]
[TimeControl "300"]
[EndTime "11:03:19 PDT"]
[Termination "Hacker_2009 won by resignation"]

1. e4 {[%clk 0:04:56]} 1... c5 {[%clk 0:04:58.9]} 2. Bc4 {[%clk 0:04:51.7]} 2...
d6 {[%clk 0:04:54.5]} 3. Nc3 {[%clk 0:04:50.8]} 3... Nf6 {[%clk 0:04:52.7]} 4.
d3 {[%clk 0:04:49.2]} 4... Nc6 {[%clk 0:04:50.4]} 5. Nf3 {[%clk 0:04:47.7]} 5...
e6 {[%clk 0:04:46.7]} 6. O-O {[%clk 0:04:42.7]} 6... Be7 {[%clk 0:04:31.2]} 7.
e5 {[%clk 0:04:41.8]} 7... dxe5 {[%clk 0:04:21.6]} 8. Bb5 {[%clk 0:04:40.7]}
8... Bd7 {[%clk 0:04:18.5]} 9. Bxc6 {[%clk 0:04:31.2]} 9... Bxc6 {[%clk
0:04:17.6]} 10. Nxe5 {[%clk 0:04:30.3]} 10... Qc7 {[%clk 0:04:16.7]} 11. Bf4
{[%clk 0:04:25.8]} 11... Qc8 {[%clk 0:04:09.6]} 12. Nb5 {[%clk 0:04:13.4]} 12...
Bxb5 {[%clk 0:04:06.3]} 13. c4 {[%clk 0:04:08.9]} 13... Bc6 {[%clk 0:04:05]} 14.
a4 {[%clk 0:03:51.9]} 14... O-O {[%clk 0:03:50.1]} 15. Ng4 {[%clk 0:03:45.6]}
15... Nxg4 {[%clk 0:03:34.8]} 16. Qxg4 {[%clk 0:03:44]} 16... Kh8 {[%clk
0:03:34.4]} 17. Be5 {[%clk 0:03:41.3]} 17... Bf6 {[%clk 0:03:32.4]} 18. Bxf6
{[%clk 0:03:37.1]} 18... gxf6 {[%clk 0:03:32.3]} 19. h4 {[%clk 0:03:20.7]} 19...
Rg8 {[%clk 0:03:29.4]} 20. Qh3 {[%clk 0:03:08.5]} 20... Rxg2+ {[%clk 0:03:13.4]}
21. Qxg2 {[%clk 0:03:05.7]} 21... Bxg2 {[%clk 0:03:13.3]} 22. Kxg2 {[%clk
0:03:05.6]} 22... Qc6+ {[%clk 0:03:09.8]} 23. Kh2 {[%clk 0:02:57.3]} 23... Rg8
{[%clk 0:03:05.1]} 24. Rg1 {[%clk 0:02:56.8]} 24... Qf3 {[%clk 0:03:00.2]} 25.
Raf1 {[%clk 0:02:43.8]} 25... Qf4+ {[%clk 0:02:53.1]} 26. Kh3 {[%clk 0:02:33.5]}
26... Qf5+ {[%clk 0:02:51.5]} 27. Kh2 {[%clk 0:02:31.3]} 27... Qxd3 {[%clk
0:02:45.3]} 28. Rxg8+ {[%clk 0:02:28.6]} 28... Kxg8 {[%clk 0:02:42.8]} 29. Rg1+
{[%clk 0:02:27.9]} 29... Kf8 {[%clk 0:02:42.4]} 30. h5 {[%clk 0:02:23.1]} 30...
Qxc4 {[%clk 0:02:41.2]} 31. h6 {[%clk 0:02:21.7]} 31... Qh4+ {[%clk 0:02:39.9]}
32. Kg2 {[%clk 0:02:19.4]} 32... Qxh6 {[%clk 0:02:39.8]} 33. Kf1 {[%clk
0:02:18]} 33... Qc1+ {[%clk 0:02:38.4]} 34. Kg2 {[%clk 0:02:16.3]} 34... Qxb2
{[%clk 0:02:38.3]} 35. Rh1 {[%clk 0:02:14.9]} 35... Qc2 {[%clk 0:02:35.6]} 36.
a5 {[%clk 0:02:12.6]} 36... Qe4+ {[%clk 0:02:34.5]} 37. Kg1 {[%clk 0:02:11]}
37... Qxh1+ {[%clk 0:02:34.2]} 38. Kxh1 {[%clk 0:02:09.4]} 38... c4 {[%clk
0:02:34.1]} 0-1

[Event "Live Chess"]
[Site "Chess.com"]
[Date "2023.05.20"]
[Round "-"]
[White "worldchessleaguelive"]
[Black "KeithArkell"]
[Result "0-1"]
[WhiteElo "1388"]
[BlackElo "2612"]
[TimeControl "300"]
[EndTime "11:03:20 PDT"]
[Termination "KeithArkell won by resignation"]

1. d4 {[%clk 0:04:58.7]} 1... e6 {[%clk 0:04:59.1]} 2. Bf4 {[%clk 0:04:56.3]}
2... Bd6 {[%clk 0:04:57.8]} 3. Bxd6 {[%clk 0:04:53.1]} 3... cxd6 {[%clk
0:04:56.9]} 4. Nf3 {[%clk 0:04:52.3]} 4... d5 {[%clk 0:04:56.3]} 5. e3 {[%clk
0:04:51.1]} 5... Nc6 {[%clk 0:04:55.6]} 6. Be2 {[%clk 0:04:50.1]} 6... Nf6
{[%clk 0:04:54.5]} 7. Nbd2 {[%clk 0:04:48.8]} 7... O-O {[%clk 0:04:53.4]} 8. Rc1
{[%clk 0:04:46.5]} 8... d6 {[%clk 0:04:52.7]} 9. c4 {[%clk 0:04:45.5]} 9... dxc4
{[%clk 0:04:52.1]} 10. Nxc4 {[%clk 0:04:44.4]} 10... d5 {[%clk 0:04:50.6]} 11.
Nce5 {[%clk 0:04:42.8]} 11... Bd7 {[%clk 0:04:49.9]} 12. O-O {[%clk 0:04:39.6]}
12... Rc8 {[%clk 0:04:48.7]} 13. Bb5 {[%clk 0:04:35.2]} 13... Nxe5 {[%clk
0:04:47.3]} 14. Rxc8 {[%clk 0:04:13.8]} 14... Nxf3+ {[%clk 0:04:41.2]} 15. gxf3
{[%clk 0:04:02]} 15... Qxc8 {[%clk 0:04:39.8]} 16. Bxd7 {[%clk 0:03:53.3]} 16...
Qxd7 {[%clk 0:04:38.1]} 0-1

[Event "Live Chess"]
[Site "Chess.com"]
[Date "2023.05.20"]
[Round "-"]
[White "LiamClery2020"]
[Black "Supertromp"]
[Result "1/2-1/2"]
[WhiteElo "2087"]
[BlackElo "2181"]
[TimeControl "300"]
[EndTime "11:03:22 PDT"]
[Termination "Game drawn by repetition"]

1. e4 {[%clk 0:04:59]} 1... c5 {[%clk 0:04:54.4]} 2. Nf3 {[%clk 0:04:51.4]} 2...
d6 {[%clk 0:04:47.4]} 3. Bb5+ {[%clk 0:04:50.6]} 3... Bd7 {[%clk 0:04:42.1]} 4.
Bxd7+ {[%clk 0:04:49.5]} 4... Qxd7 {[%clk 0:04:40.9]} 5. O-O {[%clk 0:04:49.4]}
5... Nc6 {[%clk 0:04:38.6]} 6. Re1 {[%clk 0:04:48.5]} 6... g6 {[%clk 0:04:30.4]}
7. c3 {[%clk 0:04:47.8]} 7... d5 {[%clk 0:04:27.9]} 8. e5 {[%clk 0:04:45.6]}
8... e6 {[%clk 0:04:17.7]} 9. d4 {[%clk 0:04:43.8]} 9... cxd4 {[%clk 0:04:06.4]}
10. cxd4 {[%clk 0:04:43.7]} 10... Bg7 {[%clk 0:04:03.5]} 11. Nc3 {[%clk
0:04:32.9]} 11... a6 {[%clk 0:03:58.9]} 12. Bg5 {[%clk 0:04:17]} 12... Nge7
{[%clk 0:03:53.3]} 13. Qd2 {[%clk 0:04:10.8]} 13... h6 {[%clk 0:03:40]} 14. Bf6
{[%clk 0:04:07.3]} 14... Bxf6 {[%clk 0:03:25.6]} 15. exf6 {[%clk 0:04:07.2]}
15... Nf5 {[%clk 0:03:23.6]} 16. Ne5 {[%clk 0:04:04.2]} 16... Qd8 {[%clk
0:03:07.4]} 17. Nxc6 {[%clk 0:03:52.5]} 17... bxc6 {[%clk 0:03:05.2]} 18. Qf4
{[%clk 0:03:50.8]} 18... Qxf6 {[%clk 0:02:56.8]} 19. g4 {[%clk 0:03:49.6]} 19...
Qxd4 {[%clk 0:02:54.1]} 20. Ne4 {[%clk 0:03:34.4]} 20... dxe4 {[%clk 0:02:38.3]}
21. Rad1 {[%clk 0:03:30.3]} 21... Qf6 {[%clk 0:02:14.7]} 22. gxf5 {[%clk
0:03:28.4]} 22... gxf5 {[%clk 0:02:12.1]} 23. Qc7 {[%clk 0:03:25.7]} 23... O-O
{[%clk 0:02:03.8]} 24. Kh1 {[%clk 0:03:24.5]} 24... Rad8 {[%clk 0:01:50]} 25.
Rg1+ {[%clk 0:03:22.5]} 25... Kh7 {[%clk 0:01:49]} 26. Qxc6 {[%clk 0:03:17.9]}
26... Rxd1 {[%clk 0:01:44.4]} 27. Rxd1 {[%clk 0:03:17.8]} 27... Qxb2 {[%clk
0:01:43.3]} 28. Qd6 {[%clk 0:03:13.8]} 28... Qxf2 {[%clk 0:01:37.5]} 29. Qxf8
{[%clk 0:03:11.9]} 29... Qf3+ {[%clk 0:01:36.7]} 30. Kg1 {[%clk 0:03:11.4]}
30... Qxd1+ {[%clk 0:01:36.1]} 31. Kg2 {[%clk 0:03:10.9]} 31... Qe2+ {[%clk
0:01:35.3]} 32. Kg1 {[%clk 0:03:10.3]} 32... Qe3+ {[%clk 0:01:34.5]} 33. Kg2
{[%clk 0:03:08.7]} 33... Qf3+ {[%clk 0:01:33.8]} 34. Kg1 {[%clk 0:03:08.2]}
34... Kg6 {[%clk 0:01:22.1]} 35. Qg8+ {[%clk 0:03:06.4]} 35... Kf6 {[%clk
0:01:19.3]} 36. Qd8+ {[%clk 0:03:03.6]} 36... Ke5 {[%clk 0:01:12.9]} 37. Qh8+
{[%clk 0:03:00.7]} 37... f6 {[%clk 0:01:06.7]} 38. Qb8+ {[%clk 0:02:58.1]} 38...
Kd4 {[%clk 0:01:05.8]} 39. Qd6+ {[%clk 0:02:55.3]} 39... Ke3 {[%clk 0:01:04.3]}
40. Qa3+ {[%clk 0:02:52.8]} 40... Kf4 {[%clk 0:00:58.6]} 41. Qd6+ {[%clk
0:02:49.3]} 41... e5 {[%clk 0:00:42.8]} 42. Qxf6 {[%clk 0:02:48.1]} 42... e3
{[%clk 0:00:41.2]} 43. Qxh6+ {[%clk 0:02:43.7]} 43... Ke4 {[%clk 0:00:40.3]} 44.
Qc6+ {[%clk 0:02:42.7]} 44... Kf4 {[%clk 0:00:35.3]} 45. Qh6+ {[%clk 0:02:41.9]}
45... Kg4 {[%clk 0:00:33.3]} 46. Qg6+ {[%clk 0:02:40.5]} 46... Kh4 {[%clk
0:00:30.4]} 47. Qf6+ {[%clk 0:02:35.3]} 47... Kh5 {[%clk 0:00:20.8]} 48. Qf7+
{[%clk 0:02:29.3]} 48... Kg5 {[%clk 0:00:20.3]} 49. Qg7+ {[%clk 0:02:28.1]}
49... Kf4 {[%clk 0:00:19.8]} 50. Qh6+ {[%clk 0:02:24.2]} 1/2-1/2

[Event "Live Chess"]
[Site "Chess.com"]
[Date "2023.05.20"]
[Round "-"]
[White "hturner40"]
[Black "NAZRIZ1977"]
[Result "1-0"]
[WhiteElo "1850"]
[BlackElo "2151"]
[TimeControl "300"]
[EndTime "11:03:26 PDT"]
[Termination "hturner40 won by resignation"]

1. Nc3 {[%clk 0:04:57]} 1... c5 {[%clk 0:04:58.5]} 2. Nf3 {[%clk 0:04:54.2]}
2... g6 {[%clk 0:04:58]} 3. d4 {[%clk 0:04:52.7]} 3... Bg7 {[%clk 0:04:57.9]} 4.
dxc5 {[%clk 0:04:49.4]} 4... Nf6 {[%clk 0:04:56.9]} 5. Be3 {[%clk 0:04:43.2]}
5... O-O {[%clk 0:04:56.8]} 6. g4 {[%clk 0:04:41.3]} 6... Nxg4 {[%clk
0:04:55.9]} 7. Bd4 {[%clk 0:04:37.4]} 7... e5 {[%clk 0:04:53.7]} 8. Be3 {[%clk
0:04:29.1]} 8... Nxe3 {[%clk 0:04:52.4]} 9. fxe3 {[%clk 0:04:28.2]} 9... Na6
{[%clk 0:04:52.3]} 10. Qd6 {[%clk 0:04:15.6]} 10... Re8 {[%clk 0:04:46.3]} 11.
O-O-O {[%clk 0:04:00.4]} 11... Bf8 {[%clk 0:04:28.1]} 12. Qd5 {[%clk 0:03:52]}
12... Qe7 {[%clk 0:03:49.9]} 13. Nb5 {[%clk 0:03:28.1]} 13... Rb8 {[%clk
0:03:33.8]} 14. Nd6 {[%clk 0:03:23.4]} 1-0

[Event "Live Chess"]
[Site "Chess.com"]
[Date "2023.05.20"]
[Round "-"]
[White "Doge_Dandolo"]
[Black "CocheseUK"]
[Result "1-0"]
[WhiteElo "2122"]
[BlackElo "1163"]
[TimeControl "300"]
[EndTime "11:03:31 PDT"]
[Termination "Doge_Dandolo won by resignation"]

1. Nf3 {[%clk 0:04:56.6]} 1... d5 {[%clk 0:04:55.3]} 2. c4 {[%clk 0:04:55.3]}
2... dxc4 {[%clk 0:04:52.7]} 3. e3 {[%clk 0:04:54.1]} 3... Nc6 {[%clk
0:04:49.8]} 4. Bxc4 {[%clk 0:04:52.8]} 4... e5 {[%clk 0:04:47.1]} 5. d4 {[%clk
0:04:50.8]} 5... exd4 {[%clk 0:04:44.2]} 6. exd4 {[%clk 0:04:49.2]} 6... Nf6
{[%clk 0:04:20.5]} 7. Ng5 {[%clk 0:04:45]} 7... Qe7+ {[%clk 0:04:07.5]} 8. Be3
{[%clk 0:04:42.6]} 8... Be6 {[%clk 0:03:55.7]} 9. Bxe6 {[%clk 0:04:37.1]} 9...
fxe6 {[%clk 0:03:52.8]} 10. O-O {[%clk 0:04:34.3]} 10... O-O-O {[%clk
0:03:50.3]} 11. Qa4 {[%clk 0:04:29.1]} 11... a6 {[%clk 0:03:46.8]} 12. Nc3
{[%clk 0:04:26.6]} 12... Nd5 {[%clk 0:03:27.3]} 13. Nxd5 {[%clk 0:04:22.2]}
13... exd5 {[%clk 0:03:21.6]} 14. Rac1 {[%clk 0:04:17.2]} 14... h6 {[%clk
0:03:12.3]} 15. Nf3 {[%clk 0:04:14.4]} 15... Qf6 {[%clk 0:03:04]} 16. Rc3 {[%clk
0:04:00.4]} 16... g5 {[%clk 0:02:58.1]} 17. Rfc1 {[%clk 0:03:52.3]} 17... Bd6
{[%clk 0:02:34.8]} 18. a3 {[%clk 0:03:44.1]} 18... Rhe8 {[%clk 0:02:06.2]} 19.
b4 {[%clk 0:03:41.8]} 19... Na7 {[%clk 0:01:48]} 20. Qb3 {[%clk 0:03:35]} 20...
Nb5 {[%clk 0:01:41.5]} 21. R3c2 {[%clk 0:03:26.9]} 21... Re4 {[%clk 0:01:27.8]}
22. a4 {[%clk 0:03:11.7]} 22... Na7 {[%clk 0:01:07.4]} 23. b5 {[%clk 0:03:10.4]}
23... axb5 {[%clk 0:01:00.1]} 24. axb5 {[%clk 0:03:08.1]} 24... b6 {[%clk
0:00:24.4]} 25. Qa4 {[%clk 0:03:02.3]} 25... Kb8 {[%clk 0:00:18.4]} 26. Ra2
{[%clk 0:02:58.3]} 1-0